bitfinex/quotes_ETHUSD_20220226
["timestamp","ask_amount","ask_price","bid_price","bid_amount"]
[1645879126220,0.00493995,2757.2,2757.0,1.81374]
[1645879126624,14.53,2758.0,2756.9,1.0]
[1645879126826,11.03,2757.8,2756.8,0.6]
[1645879127022,14.53,2757.8,2756.8,0.3]
[1645879127282,14.53,2757.8,2756.6,3.82403607]
[1645879127489,15.44168289,2757.8,2756.6,2.5109]
[1645879128180,14.53,2757.8,2756.6,2.5109]
[1645879128581,3.5,2757.8,2756.8,1.42802838]
[1645879128880,4.40731,2758.0,2756.6,2.5109]
[1645879129280,6.22191,2758.0,2756.2,2.9688]
[1645879129486,11.94168289,2757.7,2756.2,2.9688]
[1645879129686,11.03,2757.3,2756.2,0.25]
[1645879129889,11.03,2757.1,2755.6,1.31900227]
[1645879130088,0.523,2757.0,2755.6,1.31900227]
[1645879130284,0.523,2757.0,2755.5,9.4431]
[1645879130487,0.00493614,2756.5,2755.5,9.4431]
[1645879131122,0.00493614,2756.5,2755.5,9.7431]
[1645879131324,0.00493614,2756.5,2755.5,10.7431]
[1645879131525,0.00388278,2756.9,2755.7,1.13903678]
[1645879131724,0.00493636,2756.1,2755.7,1.13903678]
[1645879131923,0.00493636,2756.1,2755.7,1.43903678]
[1645879132726,0.00388278,2756.7,2755.5,7.5431]
[1645879132923,0.00388278,2756.8,2755.6,3.5]
[1645879133128,0.00493643,2756.0,2755.6,3.5]
[1645879133325,0.00493643,2756.0,2755.6,1.0]
[1645879133527,0.00493643,2756.0,2755.5,7.5431]
[1645879133727,0.00493643,2756.0,2755.6,1.35153609]
[1645879133928,0.00388278,2756.8,2755.7,3.5]
[1645879134130,0.00493652,2755.9,2755.7,3.5]
[1645879134332,0.00493652,2755.9,2755.7,1.3]
[1645879134629,0.00493652,2755.9,2755.6,2.65153609]
[1645879134860,0.00493652,2755.9,2755.6,1.65153609]
[1645879135062,0.00388278,2756.8,2755.6,2.65153609]
[1645879135260,0.00388278,2756.8,2755.6,5.29663609]
[1645879135459,0.00388278,2756.8,2755.7,0.03248726]
[1645879135460,0.00493652,2755.9,2755.7,0.03248726]
[1645879136262,0.00388278,2756.8,2755.7,0.03248726]
[1645879136463,0.00493649,2755.9,2755.7,0.03248726]
[1645879137061,0.00493649,2755.9,2755.7,4.43994796]
[1645879137263,0.00493649,2755.9,2755.7,5.73994796]
[1645879137461,0.00388278,2757.1,2755.7,5.73994796]
[1645879137666,0.019743,2756.4,2756.2,1.29763236]
[1645879137865,0.019743,2756.4,2756.2,1.63011298]
[1645879138262,0.019743,2756.4,2756.3,3.5]
[1645879138519,0.019743,2756.4,2756.3,3.53247929]
[1645879138711,0.00388278,2757.3,2756.3,4.53247929]
[1645879138912,0.01974162,2756.9,2756.8,1.4290221]
[1645879139112,0.01974162,2756.9,2756.4,3.1583]
[1645879139312,0.01974162,2756.9,2756.4,4.3134]
[1645879139913,2.34458278,2757.6,2756.4,4.3134]
[1645879140216,0.00493596,2756.8,2756.7,1.05993076]
[1645879140614,0.00493596,2756.8,2756.5,4.5]
[1645879140814,0.00493596,2756.8,2756.5,4.8]
[1645879141220,2.34458278,2757.6,2756.5,1.3]
[1645879141420,1.19660912,2758.1,2757.9,2.16092723]
[1645879141615,1.19660912,2758.1,2757.7,2.7534]
[1645879141616,0.90612748,2758.0,2757.7,2.7534]
[1645879141814,0.90612748,2757.9,2757.7,2.7534]
[1645879142017,0.90612748,2757.8,2757.7,2.7534]
[1645879142260,1.12700944,2757.8,2757.6,8.31889538]
[1645879142465,0.22035916,2757.7,2757.6,8.31889538]
[1645879142868,0.90665028,2757.7,2757.6,8.31889538]
[1645879143065,1.57958888,2757.8,2757.6,8.31889538]
[1645879143267,0.22035916,2757.7,2757.6,8.31889538]
[1645879143468,1.57958888,2757.7,2757.6,8.31889538]
[1645879143667,0.22035916,2757.7,2757.6,8.31889538]
[1645879143867,12.84225112,2757.7,2757.6,8.31889538]
[1645879144071,12.86035916,2757.7,2757.6,8.31889538]
[1645879144269,1.83035916,2757.7,2757.6,4.33464797]
[1645879144470,14.67261028,2757.7,2757.6,4.33464797]
[1645879144670,14.62802037,2757.7,2757.6,4.33464797]
[1645879144871,13.03612841,2757.7,2757.6,4.33464797]
[1645879146115,2.00612841,2757.7,2757.6,4.33464797]
[1645879146314,3.82300639,2757.7,2757.6,4.33464797]
[1645879146515,14.85300639,2757.7,2757.6,4.33464797]
[1645879147118,14.85300639,2757.7,2754.7,4.54926695]
[1645879147119,8.53794798,2754.8,2754.7,4.54926695]
[1645879147418,0.6813518,2756.6,2755.0,0.3627]
[1645879147616,2.21462599,2756.6,2755.4,0.9075018]
[1645879147817,4.18521371,2756.5,2755.3,1.8150036]
[1645879148019,0.6813518,2756.3,2755.1,2.9866]
[1645879148217,0.68521371,2756.2,2755.3,1.34829863]
[1645879148415,0.68521371,2756.2,2755.4,0.1451]
[1645879148416,15.2113518,2756.1,2755.4,0.1451]
[1645879148617,15.2113518,2756.1,2755.1,2.8415]
[1645879148618,2.21924137,2756.0,2755.1,2.8415]
[1645879148918,1.53327419,2755.9,2755.1,2.8415]
[1645879149115,1.53327419,2755.9,2754.8,0.1451]
[1645879149317,0.68521371,2755.8,2754.8,0.1451]
[1645879149518,1.53327419,2755.7,2754.9,1.04352471]
[1645879149760,0.00461572,2755.5,2754.9,1.04352471]
[1645879149966,0.00461572,2755.5,2754.8,0.1451]
[1645879149967,1.53327419,2755.4,2754.8,0.1451]
[1645879150167,1.53327419,2755.4,2754.7,7.27681699]
[1645879150168,14.53,2755.3,2754.7,7.27681699]
[1645879150371,1.53327419,2755.2,2754.7,7.27681699]
[1645879150869,1.53327419,2755.2,2754.7,7.2722]
[1645879151065,1.53327419,2755.2,2754.7,7.27681454]
[1645879151066,0.00461386,2755.1,2754.7,7.27681454]
[1645879151265,1.53327419,2755.0,2754.7,7.27681454]
[1645879151467,1.53327419,2754.9,2754.7,7.27681454]
[1645879151668,0.00461386,2755.1,2754.7,7.27681454]
[1645879151881,1.53327419,2755.3,2754.7,7.2722]
[1645879151882,12.56327419,2755.0,2754.7,7.2722]
[1645879152072,12.56327419,2755.0,2754.7,7.27681445]
[1645879152073,1.53327419,2754.9,2754.7,7.27681445]
[1645879152469,1.53327419,2754.8,2754.7,7.27681445]
[1645879152769,0.00461382,2755.0,2754.7,7.27681445]
[1645879152973,2.21462599,2755.2,2754.7,7.2722]
[1645879152974,1.53327419,2754.9,2754.7,7.2722]
[1645879153175,1.53327419,2754.8,2754.7,7.2722]
[1645879153387,1.377e-05,2755.0,2754.9,0.3627]
[1645879153623,1.377e-05,2755.0,2754.9,4.3857]
[1645879154022,1.377e-05,2755.0,2754.9,15.50130774]
[1645879154226,0.6813518,2756.3,2754.9,17.76153764]
[1645879154423,0.68521371,2756.2,2755.0,0.1451]
[1645879154623,0.68521371,2756.2,2755.1,0.9076328]
[1645879154624,0.6813518,2756.2,2755.1,0.9076328]
[1645879154829,0.00386191,2756.1,2755.2,0.4451]
[1645879155629,0.6813518,2756.2,2755.2,4.3078]
[1645879155832,0.6813518,2756.2,2755.4,0.9075444]
[1645879155833,0.00386191,2756.1,2755.4,0.9075444]
[1645879156030,0.6813518,2756.2,2755.4,0.9075444]
[1645879156231,0.6813518,2756.2,2755.4,1.2702444]
[1645879156430,0.00386191,2756.4,2755.4,1.2702444]
[1645879156431,0.68521371,2756.4,2755.4,1.2702444]
[1645879156636,0.6813518,2756.3,2755.4,2.1777444]
[1645879157266,0.6813518,2756.3,2755.7,1.2701616]
[1645879158065,0.00493636,2756.1,2755.7,1.2701616]
[1645879159066,0.6813518,2756.3,2755.7,0.9074616]
[1645879159268,0.6813518,2756.3,2755.4,1.5968]
[1645879159269,0.00493643,2756.0,2755.6,1.05198241]
[1645879160270,0.6813518,2756.2,2755.6,1.05198241]
[1645879160569,0.00493649,2755.9,2755.6,1.05198241]
[1645879161414,0.6813518,2756.2,2755.5,0.32389407]
[1645879161614,0.00386191,2756.1,2755.5,0.32389407]
[1645879161812,0.00493652,2755.9,2755.7,1.21935136]
[1645879162712,0.6813518,2756.2,2755.7,1.21935136]
[1645879162917,0.00493649,2755.9,2755.5,0.32389407]
[1645879163915,0.6813518,2756.1,2755.5,0.32389407]
[1645879164117,0.00493655,2755.8,2755.6,1.42702179]
[1645879165168,0.6813518,2756.1,2755.6,1.42702179]
[1645879165370,0.00493655,2755.8,2755.6,1.42702179]
[1645879166374,0.6813518,2756.1,2755.6,1.42702179]
[1645879166568,0.00493655,2755.8,2755.6,1.78972179]
[1645879166971,0.00493655,2755.8,2755.5,0.32389407]
[1645879167172,0.00493655,2755.8,2755.4,1.0308]
[1645879167569,0.00386191,2756.0,2755.4,1.0308]
[1645879167769,0.00493658,2755.8,2755.4,1.0308]
[1645879168170,0.00493658,2755.8,2755.5,1.38456888]
[1645879168369,0.66899383,2756.2,2755.6,6.0]
[1645879168616,0.66513192,2756.2,2755.6,6.0]
[1645879169017,0.00386191,2756.3,2755.6,6.0]
[1645879169221,0.90846907,2756.3,2755.4,0.1451]
[1645879169420,0.90846907,2756.2,2755.4,0.1451]
[1645879169623,0.91233098,2756.3,2755.4,0.1451]
[1645879169821,0.91233098,2756.3,2755.5,1.09345264]
[1645879170224,0.91726676,2756.3,2755.7,0.00493699]
[1645879171023,0.91726676,2756.3,2755.4,0.1451]
[1645879171024,0.90846907,2756.1,2755.4,0.1451]
[1645879171226,7.5,2756.2,2754.8,3.6924]
[1645879171227,0.90846907,2756.0,2754.8,3.6924]
[1645879171436,0.90846907,2755.9,2754.8,3.6924]
[1645879171626,0.90846907,2755.9,2754.9,9.9215]
[1645879171828,0.90846907,2755.9,2754.9,7.2717]
[1645879172025,1.36656551,2756.1,2754.9,7.2717]
[1645879172026,0.90846907,2755.8,2754.9,7.2717]
[1645879173069,0.90846907,2755.9,2754.9,7.2717]
[1645879173270,0.14846191,2756.1,2754.9,7.2717]
[1645879173671,0.91399259,2755.9,2754.9,7.2717]
[1645879173871,0.91399259,2755.7,2755.3,0.00175669]
[1645879174672,2.44760423,2755.8,2754.9,7.2717]
[1645879174879,1.53361164,2755.7,2755.4,0.00493718]
[1645879175283,0.91399259,2755.9,2755.4,0.00493718]
[1645879175478,0.14846191,2756.1,2755.4,0.00493718]
[1645879175479,1.53361164,2755.8,2755.4,0.00493718]
[1645879175677,2.89353564,2756.2,2755.5,1.36922747]
[1645879175678,1.53361164,2755.7,2755.5,1.36922747]
[1645879175881,1.53361164,2755.6,2755.3,0.3627]
[1645879176126,1.53361164,2755.5,2755.3,0.6627]
[1645879176327,1.53361164,2755.4,2755.3,0.3]
[1645879176832,1.53361164,2756.1,2755.3,0.3]
[1645879177029,1.53747355,2756.1,2755.3,0.3]
[1645879177226,1.53747355,2756.1,2755.4,1.15357899]
[1645879177227,1.53361164,2756.0,2755.4,1.15357899]
[1645879177433,1.53361164,2755.9,2755.4,1.15357899]
[1645879177631,1.53361164,2755.8,2755.4,1.15357899]
[1645879177831,1.53361164,2755.7,2755.4,1.15357899]
[1645879178033,1.53361164,2755.6,2755.4,1.15357899]
[1645879178231,0.00493547,2756.2,2755.4,1.15357899]
[1645879178232,1.53361164,2755.5,2755.4,1.15357899]
[1645879178632,1.53361164,2755.5,2755.4,1.15851613]
[1645879178831,0.00386191,2756.0,2755.4,1.15851613]
[1645879178832,0.68961394,2756.0,2755.4,1.15851613]
[1645879179031,0.68575203,2756.0,2755.4,1.15851613]
[1645879179442,0.0049357,2756.2,2755.5,0.9074931]
[1645879179443,1.53361164,2755.9,2755.5,0.9074931]
[1645879179639,2.22322558,2756.1,2755.6,0.523]
[1645879179874,2.22322558,2756.1,2755.6,0.52767304]
[1645879179875,1.53361164,2756.0,2755.6,0.52767304]
[1645879180074,1.53361164,2755.9,2755.6,0.52767304]
[1645879180273,1.53361164,2755.8,2755.6,0.52767304]
[1645879180474,1.53361164,2755.7,2755.6,0.52767304]
[1645879180672,0.00386191,2756.0,2755.6,0.523]
[1645879180873,0.68575203,2756.1,2755.6,0.52767304]
[1645879181274,2.21936367,2756.1,2755.6,0.52767304]
[1645879181473,1.53361164,2756.0,2755.5,1.61445372]
[1645879181673,1.53361164,2755.9,2755.5,1.61445372]
[1645879181875,0.68575203,2756.1,2755.5,1.61445372]
[1645879181876,1.53361164,2755.8,2755.5,1.61445372]
[1645879182077,1.53361164,2755.7,2755.5,1.61445372]
[1645879182277,1.53361164,2755.6,2755.5,0.9074931]
[1645879182473,1.53361164,2755.9,2755.5,0.9074931]
[1645879182674,1.53361164,2755.8,2755.5,0.9074931]
[1645879182874,1.53361164,2755.7,2755.5,0.9074931]
[1645879183075,1.53361164,2755.6,2755.5,0.9074931]
[1645879183277,0.68893912,2756.1,2755.4,0.823]
[1645879183723,0.68893912,2756.1,2755.3,1.71631395]
[1645879183724,1.53361164,2755.6,2755.3,1.53481395]
[1645879183930,1.53361164,2755.6,2755.3,0.3]
[1645879184129,1.53361164,2755.5,2755.3,0.3]
[1645879184329,1.53361164,2756.0,2755.3,0.3]
[1645879184532,1.53361164,2755.9,2755.3,0.3]
[1645879184733,1.53361164,2755.8,2755.3,0.3]
[1645879184932,1.53361164,2755.7,2755.3,0.3]
[1645879185133,1.53361164,2755.6,2755.3,0.3]
[1645879185332,1.53361164,2755.5,2755.3,0.3]
[1645879185533,0.68893889,2756.1,2755.3,0.3]
[1645879185534,1.53361164,2755.4,2755.3,1.2075408]
[1645879185737,0.69068785,2756.1,2755.3,1.21247801]
[1645879185932,1.53361164,2756.0,2755.3,4.71247801]
[1645879186231,1.53361164,2756.0,2755.3,1.21247801]
[1645879186834,1.53361164,2756.0,2755.3,1.2075408]
[1645879187035,1.53361164,2755.9,2755.5,0.00493717]
[1645879187279,1.53361164,2755.8,2755.5,0.00493717]
[1645879187465,1.53361164,2755.7,2755.5,0.00493717]
[1645879187665,1.53361164,2755.6,2755.5,0.00493717]
[1645879187866,1.53361164,2755.6,2755.3,1.5075408]
[1645879187867,1.53361164,2755.9,2755.3,0.6]
[1645879188067,1.53361164,2755.8,2755.3,0.3]
[1645879188267,1.53361164,2755.7,2755.5,0.00493711]
[1645879188467,1.53361164,2755.6,2755.5,0.00493711]
[1645879188867,1.53361164,2756.0,2755.5,0.00493711]
[1645879189067,1.53361164,2755.9,2755.3,0.3]
[1645879189268,1.53361164,2755.8,2755.4,0.00493714]
[1645879189468,1.53361164,2755.7,2755.4,0.00493714]
[1645879189669,1.53361164,2755.6,2755.4,0.00493714]
[1645879189874,1.53361164,2755.5,2755.4,0.00493714]
[1645879190073,1.53361164,2756.0,2755.4,0.00493714]
[1645879190271,1.53361164,2756.0,2755.3,0.3]
[1645879190472,1.53361164,2755.9,2755.3,0.3]
[1645879190673,1.53361164,2755.8,2755.3,0.30493721]
[1645879190874,1.53361164,2755.7,2755.3,0.30493721]
[1645879191122,1.53361164,2755.6,2755.3,0.30493721]
[1645879191318,0.00493582,2756.1,2755.3,0.30493721]
[1645879191519,0.00386191,2756.3,2755.3,0.3]
[1645879191717,0.00386191,2756.3,2755.3,0.30493721]
[1645879191718,0.00493582,2756.1,2755.3,0.30493721]
[1645879192319,0.00493582,2756.1,2755.4,0.1451]
[1645879192718,0.00386191,2756.3,2755.4,0.1451]
[1645879192920,0.00493617,2756.1,2755.5,0.00493729]
[1645879193925,0.00386191,2756.3,2755.4,0.1451]
[1645879194123,0.00493622,2756.1,2755.5,0.00493734]
[1645879195175,0.00386191,2756.3,2755.4,0.1451]
[1645879195373,0.00493622,2756.1,2755.5,0.00493734]
[1645879196375,0.00386191,2756.3,2755.3,0.4451]
[1645879196674,0.00493622,2756.1,2755.5,0.00493734]
[1645879197573,0.00386191,2756.3,2755.3,0.4451]
[1645879197775,0.00493622,2756.1,2755.5,0.00493734]
[1645879198627,0.00493622,2756.1,2755.7,0.3627]
[1645879198831,2.9038,2757.6,2755.7,0.3627]
[1645879198832,0.00386191,2757.0,2756.0,1.0]
[1645879199027,0.01974215,2756.5,2756.1,13.09584674]
[1645879199226,0.01974215,2756.5,2756.3,0.3627]
[1645879199426,0.1446,2758.0,2756.5,7.8627]
[1645879199427,2.01447162,2758.0,2756.5,7.8627]
[1645879199630,2.01447162,2758.0,2756.6,0.6679]
[1645879199830,2.01447162,2758.0,2757.1,1.28212835]
[1645879199831,1.65177162,2758.0,2757.1,1.28212835]
[1645879200732,0.00386191,2758.0,2757.1,1.28212835]
[1645879201141,0.00386191,2758.0,2757.2,0.9069163]
[1645879201142,0.91622162,2757.5,2757.2,0.9069163]
[1645879201342,0.91622162,2757.5,2757.1,1.76113031]
[1645879201542,0.68714895,2757.3,2757.1,0.9069]
[1645879201737,1.43264737,2757.2,2757.1,0.9069]
[1645879201937,0.68714895,2757.4,2757.1,4.4069]
[1645879202378,0.68714895,2757.4,2757.1,2.0518]
[1645879202581,0.68714895,2757.2,2757.1,1.1449]
[1645879202779,0.68714895,2757.2,2757.1,0.1449]
[1645879203278,0.68714895,2757.2,2757.1,0.4449]
[1645879203479,0.68714895,2757.2,2757.0,0.1449]
[1645879203678,0.69208458,2757.3,2757.0,0.1449]
[1645879204282,0.68714895,2757.2,2757.0,0.1449]
[1645879204483,0.69208458,2757.3,2757.0,1.9587741]
[1645879204684,0.68714895,2757.3,2757.0,2.2587741]
[1645879204885,0.69208461,2757.2,2756.8,0.523]
[1645879205084,0.69208461,2757.2,2756.5,1.81401]
[1645879205085,0.68714895,2757.0,2756.9,7.2664]
[1645879205283,0.68714895,2757.0,2756.9,4.2239]
[1645879205284,11.94622162,2757.0,2756.9,4.2239]
[1645879205483,0.91622162,2757.0,2756.9,4.2239]
[1645879205685,3.65219775,2757.1,2756.9,4.2239]
[1645879205885,3.5,2757.1,2756.9,4.2239]
[1645879206120,1.37433242,2757.1,2756.9,4.2239]
[1645879206321,0.00493576,2757.1,2756.9,4.2239]
[1645879206922,0.14953576,2757.1,2756.9,4.2239]
[1645879207118,0.1446,2757.1,2756.9,4.2239]
[1645879207317,0.14953573,2757.1,2756.9,4.2239]
[1645879207724,12.55386815,2757.1,2756.9,4.2239]
[1645879207923,12.40926815,2757.1,2756.9,4.2239]
[1645879208126,12.40926815,2757.1,2756.3,0.00493722]
[1645879208127,11.03,2756.9,2756.3,0.00493722]
[1645879208331,11.03,2756.9,2756.0,10.0]
[1645879208332,11.94341675,2756.5,2756.0,10.0]
[1645879208526,0.68496781,2756.2,2756.0,10.0]
[1645879209125,11.71496781,2756.2,2756.0,10.0]
[1645879209782,0.68496781,2756.2,2756.0,10.0049368]
[1645879210677,0.68496781,2756.2,2756.0,10.0]
[1645879211078,0.68496781,2756.2,2756.0,10.0049368]
[1645879211881,0.68496781,2756.2,2756.0,10.0]
[1645879212079,0.68496781,2756.2,2756.0,10.0049368]
[1645879213081,0.68496781,2756.2,2756.0,10.0]
[1645879213520,0.68496781,2756.2,2756.0,10.0049368]
[1645879213718,14.6833975,2756.6,2756.0,10.0049368]
[1645879213719,0.68496781,2756.3,2756.0,10.0049368]
[1645879214021,0.68496781,2756.2,2756.0,10.0049368]
[1645879214221,0.70359235,2756.2,2756.0,10.0049368]
[1645879214420,0.01862454,2756.2,2756.0,10.0]
[1645879214718,0.01862454,2756.2,2756.0,10.00493677]
[1645879215528,0.01862454,2756.2,2756.0,10.0]
[1645879215724,0.01862454,2756.2,2756.0,10.0049368]
[1645879216129,0.70359235,2756.2,2756.0,10.0049368]
[1645879216428,0.68496781,2756.1,2756.0,10.0049368]
[1645879216926,0.70359235,2756.2,2756.0,10.0049368]
[1645879217126,0.68496781,2756.1,2756.0,10.0049368]
[1645879217973,0.68496781,2756.1,2756.0,10.0]
[1645879219175,0.70359235,2756.2,2756.0,10.0]
[1645879220679,0.70359235,2756.2,2756.0,8.79949132]
[1645879221522,0.70359235,2756.2,2756.0,7.15907335]
[1645879221723,0.70359235,2756.2,2756.0,7.16401015]
[1645879221923,1.5332281,2756.1,2756.0,7.16401015]
[1645879222725,1.5332281,2756.1,2756.0,7.15907335]
[1645879224625,1.5332281,2756.1,2756.0,8.15907335]
[1645879224873,1.5332281,2756.1,2756.0,8.45907335]
[1645879225079,1.5332281,2756.1,2756.0,8.82177335]
[1645879225273,0.01862454,2756.2,2756.0,9.34477335]
[1645879226273,1.53292745,2756.1,2756.0,9.34477335]
[1645879226476,1.53292745,2756.1,2756.0,16.60157335]
[1645879226682,0.01862454,2756.2,2756.0,16.60651015]
[1645879227475,0.01862454,2756.2,2756.0,16.60157335]
[1645879227876,0.01862454,2756.2,2756.0,16.60651015]
[1645879228719,0.01862454,2756.2,2756.0,16.60157335]
[1645879228720,1.53293548,2756.1,2756.0,16.60157335]
[1645879228920,1.53293548,2756.1,2756.0,16.24381015]
[1645879229121,1.53293548,2756.1,2756.0,15.72081015]
[1645879229322,0.68496781,2756.5,2756.0,15.72081015]
[1645879229925,0.68496781,2756.5,2756.0,15.71587335]
[1645879230123,0.68496781,2756.5,2756.1,0.0049367]
[1645879231327,0.68496781,2756.5,2756.0,15.71587335]
[1645879231524,0.68496781,2756.5,2756.2,0.00493667]
[1645879231726,1.53293548,2756.4,2756.2,0.00493667]
[1645879231932,1.53293548,2756.3,2756.2,0.52793667]
[1645879232130,0.00493582,2756.6,2756.2,0.52793667]
[1645879232373,0.02208942,2756.7,2756.2,0.823]
[1645879232773,0.00282139,2756.6,2756.4,1.27338718]
[1645879233172,0.00282139,2756.6,2756.4,1.57338718]
[1645879233572,0.02208942,2756.7,2756.4,1.57338718]
[1645879233773,0.00282164,2756.6,2756.4,1.57338718]
[1645879234678,0.02208942,2756.7,2756.3,0.3]
[1645879234877,0.02208942,2756.7,2756.0,15.93887335]
[1645879235079,0.00458506,2756.6,2756.3,0.00458561]
[1645879235879,0.02208942,2756.7,2756.2,1.54884974]
[1645879236336,0.00458501,2756.6,2756.3,0.00458556]
[1645879237339,0.00469084,2756.6,2756.3,0.00469141]
[1645879238337,0.02208942,2756.7,2756.2,1.54884974]
[1645879238638,0.00469084,2756.6,2756.3,0.00469141]
[1645879239641,0.04201547,2756.7,2756.2,1.54884974]
[1645879239885,0.00469084,2756.6,2756.3,0.00469141]
[1645879240879,0.04201547,2756.7,2756.2,1.54884974]
[1645879241079,0.04201547,2756.7,2756.3,0.00460214]
[1645879241080,0.00460159,2756.6,2756.3,0.00460214]
[1645879241879,0.04201547,2756.7,2756.2,1.54884974]
[1645879242281,0.00460159,2756.6,2756.3,0.00460214]
[1645879242486,0.00460159,2756.6,2756.2,1.54402603]
[1645879243084,0.04201547,2756.7,2756.2,1.54402603]
[1645879243827,0.02494448,2756.7,2756.2,1.54402603]
[1645879244633,0.00284501,2756.6,2756.2,1.54402603]
[1645879245635,0.02494448,2756.7,2756.2,1.54402603]
[1645879245837,0.00284496,2756.6,2756.2,1.54402603]
[1645879246235,0.00284496,2756.6,2756.2,1.24884974]
[1645879246435,0.00284496,2756.6,2756.0,15.32316335]
[1645879246636,0.00284496,2756.6,2756.0,17.50043385]
[1645879246839,0.02494448,2756.7,2756.2,1.81417]
[1645879247037,0.02494448,2756.7,2756.3,0.523]
[1645879247289,0.00460748,2756.6,2756.3,0.70442]
[1645879247677,0.00460748,2756.6,2756.3,1.00442]
[1645879248075,0.02494448,2756.7,2756.3,1.00442]
[1645879248275,0.00317924,2756.6,2756.3,1.00442]
[1645879248477,0.00317924,2756.6,2756.4,1.73927132]
[1645879248676,0.00317924,2756.6,2756.4,3.71376592]
[1645879248877,0.00317924,2756.6,2756.4,4.01376592]
[1645879249077,0.02494448,2756.7,2756.4,5.01376592]
[1645879249479,0.00317925,2756.6,2756.4,5.01376592]
[1645879249779,0.00317925,2756.6,2756.5,3.5]
[1645879250185,0.00317925,2756.6,2756.5,4.8627]
[1645879250383,0.02494448,2756.7,2756.5,12.6413]
[1645879250584,0.02812373,2756.7,2756.6,3.8627]
[1645879250783,0.02812373,2756.7,2756.6,12.641]
[1645879251627,0.02494448,2756.7,2756.6,12.641]
[1645879252432,4.448e-05,2756.7,2756.6,12.641]
[1645879252633,4.448e-05,2756.7,2756.6,15.8505]
[1645879253633,4.448e-05,2756.7,2756.6,26.8805]
[1645879254033,0.00481483,2758.1,2756.9,0.18138]
[1645879254233,0.00481483,2758.1,2757.0,3.0205239]
[1645879254234,0.0189132,2757.2,2757.0,3.0205239]
[1645879254435,0.0189132,2757.2,2757.1,0.90685]
[1645879255188,0.00481483,2758.1,2757.3,0.9068375]
[1645879255390,0.01891204,2757.7,2757.3,1.2068375]
[1645879255788,0.01891204,2757.7,2757.3,4.7068375]
[1645879256188,0.01891204,2757.7,2757.3,2.2068375]
[1645879256388,0.00386191,2758.4,2757.4,0.90683]
[1645879256588,0.00460524,2757.6,2757.3,0.3]
[1645879257589,0.00386191,2758.4,2757.3,0.3]
[1645879257893,0.00460527,2757.6,2757.4,1.31694742]
[1645879258733,0.00386191,2758.4,2757.4,1.31694742]
[1645879259135,0.00460524,2757.6,2757.4,1.31694742]
[1645879259537,0.00460524,2757.6,2757.3,2.50686]
[1645879259736,0.00460524,2757.6,2757.3,2.20686]
[1645879259938,3.50386191,2758.4,2757.3,2.20686]
[1645879260138,0.00386191,2758.4,2757.3,1.20686]
[1645879260339,0.00460995,2757.6,2757.3,1.20686]
[1645879261140,1.53250897,2757.5,2757.3,1.20686]
[1645879261341,1.53250897,2757.5,2757.4,1.32768588]
[1645879261750,0.00386191,2757.9,2757.6,0.22070565]
[1645879261941,0.61878652,2757.9,2757.7,5.523]
[1645879262142,1.82720164,2758.9,2757.7,5.523]
[1645879262143,0.68522579,2758.5,2757.8,7.01060531]
[1645879262390,0.91360082,2759.2,2758.2,11.3927]
[1645879262391,0.68522579,2759.2,2758.2,11.3927]
[1645879262591,0.63809791,2759.1,2758.3,7.7738]
[1645879262792,3.5,2759.0,2758.3,6.61661324]
[1645879263095,3.5,2759.0,2758.3,5.61661324]
[1645879263492,15.44360082,2759.0,2758.3,5.61661324]
[1645879263692,11.03,2758.8,2758.3,5.61661324]
[1645879263893,11.03,2758.6,2758.3,5.61661324]
[1645879264090,23.30630082,2758.5,2757.3,1.48246636]
[1645879264290,0.3627,2758.3,2757.3,1.48246636]
[1645879264490,0.3627,2758.3,2757.3,1.23246636]
[1645879264890,0.3627,2758.3,2757.3,1.2277]
[1645879265091,0.3627,2758.3,2757.3,1.23246544]
[1645879265092,0.00476395,2758.1,2757.3,1.23246544]
[1645879266132,11.3927,2758.4,2757.3,1.2277]
[1645879266328,0.00476384,2758.1,2757.3,1.23246533]
[1645879267128,1.27630082,2758.4,2757.3,1.2277]
[1645879267527,0.00460235,2758.1,2757.3,2.407227]
[1645879267728,0.00460235,2758.1,2757.3,1.23230379]
[1645879268427,1.27630082,2758.4,2757.3,1.2277]
[1645879268629,0.00460235,2758.1,2757.3,1.23230379]
[1645879269535,0.00460235,2758.1,2757.3,1.2277]
[1645879269793,0.00460235,2758.1,2757.3,1.23230379]
[1645879270387,0.00460235,2758.1,2757.3,0.00460379]
[1645879270589,16.9157,2758.0,2757.3,0.00460379]
[1645879270795,11.03,2757.8,2757.3,0.00460379]
[1645879271088,11.03,2757.4,2757.3,0.00178315]
[1645879271290,11.1746,2757.4,2757.3,0.00178315]
[1645879271687,11.03,2757.4,2757.3,0.00178315]
[1645879272088,11.3927,2757.2,2756.0,10.65907335]
[1645879272286,11.3927,2757.2,2756.0,8.45907335]
[1645879272887,0.3627,2757.2,2756.0,8.45907335]
[1645879273289,11.3927,2757.2,2756.0,7.15907335]
[1645879273536,12.07711226,2757.2,2756.5,0.00162825]
[1645879274434,12.07711226,2757.2,2756.0,11.71863777]
[1645879274435,1.04711226,2757.2,2756.0,11.71863777]
[1645879274635,0.68441226,2757.2,2756.7,0.00479382]
[1645879275743,0.3627,2757.1,2756.0,8.21863777]
[1645879275944,0.68441226,2757.2,2756.8,0.00475692]
[1645879276944,0.3627,2757.1,2756.0,11.71863777]
[1645879277144,0.68441226,2757.1,2756.9,0.00475689]
[1645879277382,0.14844399,2757.3,2756.9,0.00475689]
[1645879277383,0.68441226,2757.2,2756.9,0.00475689]
[1645879278080,0.86657088,2757.2,2756.1,3.6449]
[1645879278281,0.86657088,2757.2,2756.9,0.00475687]
[1645879278282,0.50387088,2757.2,2756.9,0.00475687]
[1645879279182,0.50387088,2757.2,2756.1,0.1449]
[1645879279383,0.00384399,2757.3,2756.9,0.00465252]
[1645879279584,0.1446,2757.4,2756.9,0.00465252]
[1645879280489,0.1446,2757.4,2756.1,0.1449]
[1645879280689,0.00384399,2757.3,2757.0,0.00465246]
[1645879280887,0.1446,2757.4,2757.0,0.00465246]
[1645879281541,4.0,2757.3,2756.0,11.36819023]
[1645879281741,4.00384399,2757.3,2756.1,0.145]
[1645879281944,4.00384399,2757.3,2757.1,0.00465244]
[1645879282142,1.42177527,2757.2,2757.1,0.00465244]
[1645879282943,0.0086933,2756.5,2756.2,3.75]
[1645879283144,0.0086933,2756.5,2756.3,0.09987851]
[1645879283343,0.0086933,2756.5,2756.4,0.09987851]
[1645879283544,0.0086933,2756.5,2756.2,0.09987851]
[1645879284786,0.0086933,2756.5,2756.1,0.145]
[1645879284787,1.42194595,2756.4,2756.1,0.145]
[1645879284993,1.42194595,2756.4,2756.0,6.80862581]